[Event "Titled Tuesday Blitz April 12 Late 2022"]
[White "Schekachikhin, Maksim"]
[Black "Song, Michael"]
[WhiteFideId "24177830"]
[BlackFideId "2613190"]
[WhiteElo "2230"]
[BlackElo "2274"]
[Result "0-1"]
[Round "04"]
[TimeControl "180+1"]
[Date "2022.04.13"]
[WhiteClock "0:01:06"]
[BlackClock "0:00:13"]

1. d4 {[%clk 0:03:00]}  d6 {[%clk 0:02:54]} 2. e4 {[%clk 0:02:59]}  Nf6 {[%clk 0:02:54]} 3. Nc3 {[%clk 0:02:56]}  c6 {[%clk 0:02:54]} 4. Bd3 {[%clk 0:02:37]}  e5 {[%clk 0:02:46]} 5. Nge2 {[%clk 0:02:31]}  b5 {[%clk 0:02:35]} 6. O-O {[%clk 0:02:30]}  Nbd7 {[%clk 0:02:30]} 7. Be3 {[%clk 0:02:27]}  a5 {[%clk 0:02:22]} 8. h3 {[%clk 0:02:26]}  b4 {[%clk 0:02:18]} 9. Nb1 {[%clk 0:02:25]}  d5 {[%clk 0:02:16]} 10. exd5 {[%clk 0:02:19]}  Nxd5 {[%clk 0:01:48]} 11. Bd2 {[%clk 0:02:17]}  Bd6 {[%clk 0:01:47]} 12. c4 {[%clk 0:02:16]}  bxc3 {[%clk 0:01:46]} 13. Nbxc3 {[%clk 0:02:14]}  O-O {[%clk 0:01:44]} 14. Nxd5 {[%clk 0:01:49]}  cxd5 {[%clk 0:01:42]} 15. dxe5 {[%clk 0:01:49]}  Nxe5 {[%clk 0:01:42]} 16. Bc3 {[%clk 0:01:48]}  Re8 {[%clk 0:01:14]} 17. Re1 {[%clk 0:01:46]}  Bxh3 {[%clk 0:00:15]} 18. Bxe5 {[%clk 0:01:45]}  Rxe5 {[%clk 0:00:15]} 19. gxh3 {[%clk 0:01:45]}  Qh4 {[%clk 0:00:15]} 20. Ng3 {[%clk 0:01:27]}  Rg5 {[%clk 0:00:14]} 21. Re3 {[%clk 0:01:16]}  Bxg3 {[%clk 0:00:14]} 22. Rxg3 {[%clk 0:01:17]}  Rxg3+ {[%clk 0:00:14]} 23. fxg3 {[%clk 0:01:18]}  Qxg3+ {[%clk 0:00:15]} 24. Kf1 {[%clk 0:01:18]}  Qxh3+ {[%clk 0:00:15]} 25. Ke2 {[%clk 0:01:18]}  Qg2+ {[%clk 0:00:13]} 26. Ke3 {[%clk 0:01:13]}  Re8+ {[%clk 0:00:13]} 27. Kd4 {[%clk 0:01:13]}  Qxb2+ {[%clk 0:00:13]} 28. Kxd5 {[%clk 0:01:08]}  Qe5+ {[%clk 0:00:12]} 29. Kc4 {[%clk 0:01:08]}  Rc8+ {[%clk 0:00:12]} 30. Kb3 {[%clk 0:01:08]}  Qc3+ {[%clk 0:00:12]} 31. Ka4 {[%clk 0:01:06]}  Qb4# {[%clk 0:00:13]} 0-1


[Site "https://www.chess.com"]

[Event "Titled Tuesday Blitz April 12 Late 2022"]
[White "Seo, Jung Min"]
[Black "Mortazavi, Ali"]
[WhiteFideId "1734687"]
[BlackFideId "401323"]
[WhiteElo "2692"]
[BlackElo "2496"]
[Result "0-1"]
[Round "04"]
[TimeControl "180+1"]
[Date "2022.04.13"]
[WhiteClock "0:00:41"]
[BlackClock "0:00:34"]

1. d4 {[%clk 0:03:00]}  Nf6 {[%clk 0:02:50]} 2. c4 {[%clk 0:03:00]}  g6 {[%clk 0:02:51]} 3. Nc3 {[%clk 0:02:59]}  Bg7 {[%clk 0:02:52]} 4. e4 {[%clk 0:02:59]}  O-O {[%clk 0:02:52]} 5. Nf3 {[%clk 0:02:59]}  d6 {[%clk 0:02:53]} 6. Be2 {[%clk 0:02:59]}  Bg4 {[%clk 0:02:54]} 7. d5 {[%clk 0:02:55]}  Nbd7 {[%clk 0:02:52]} 8. h3 {[%clk 0:02:55]}  Bxf3 {[%clk 0:02:51]} 9. Bxf3 {[%clk 0:02:56]}  e5 {[%clk 0:02:51]} 10. O-O {[%clk 0:02:55]}  Ne8 {[%clk 0:02:49]} 11. Rb1 {[%clk 0:02:51]}  a5 {[%clk 0:02:48]} 12. a3 {[%clk 0:02:50]}  f5 {[%clk 0:02:48]} 13. b4 {[%clk 0:02:50]}  b6 {[%clk 0:02:48]} 14. Qd3 {[%clk 0:02:46]}  Kh8 {[%clk 0:02:48]} 15. Bd1 {[%clk 0:02:42]}  Nef6 {[%clk 0:02:43]} 16. Bd2 {[%clk 0:02:39]}  Ng8 {[%clk 0:02:34]} 17. Rc1 {[%clk 0:02:31]}  axb4 {[%clk 0:02:24]} 18. axb4 {[%clk 0:02:30]}  Ra3 {[%clk 0:02:24]} 19. Qb1 {[%clk 0:02:25]}  Ra8 {[%clk 0:02:14]} 20. Bc2 {[%clk 0:02:12]}  Qf6 {[%clk 0:01:59]} 21. Kh1 {[%clk 0:02:02]}  Bh6 {[%clk 0:01:56]} 22. Bxh6 {[%clk 0:02:02]}  Nxh6 {[%clk 0:01:56]} 23. Nb5 {[%clk 0:01:55]}  Rac8 {[%clk 0:01:55]} 24. Rce1 {[%clk 0:01:50]}  Qh4 {[%clk 0:01:49]} 25. Bd1 {[%clk 0:01:45]}  Nf6 {[%clk 0:01:40]} 26. exf5 {[%clk 0:01:38]}  gxf5 {[%clk 0:01:36]} 27. Qd3 {[%clk 0:01:37]}  Rg8 {[%clk 0:01:36]} 28. Be2 {[%clk 0:01:36]}  Ne4 {[%clk 0:01:26]} 29. Qe3 {[%clk 0:01:31]}  Rg7 {[%clk 0:01:19]} 30. Bd3 {[%clk 0:01:22]}  Ng4 {[%clk 0:01:13]} 31. Qf3 {[%clk 0:01:04]}  Ngxf2+ {[%clk 0:01:08]} 32. Kh2 {[%clk 0:01:01]}  Rcg8 {[%clk 0:00:51]} 33. Rg1 {[%clk 0:00:54]}  Rg3 {[%clk 0:00:33]} 34. Qxf5 {[%clk 0:00:54]}  Rxd3 {[%clk 0:00:34]} 35. Nxc7 {[%clk 0:00:41]}  Qg3# {[%clk 0:00:34]} 0-1


[Site "https://www.chess.com"]

[Event "Titled Tuesday Blitz April 12 Late 2022"]
[White "Sernecki, Franciszek"]
[Black "Quesada Perez, Yuniesky"]
[WhiteFideId "1169297"]
[BlackFideId "3504409"]
[WhiteElo "2165"]
[BlackElo "2622"]
[Result "0-1"]
[Round "04"]
[TimeControl "180+1"]
[Date "2022.04.13"]
[WhiteClock "0:00:02"]
[BlackClock "0:00:33"]

1. d4 {[%clk 0:03:00]}  d5 {[%clk 0:02:57]} 2. c4 {[%clk 0:02:59]}  c6 {[%clk 0:02:58]} 3. Nc3 {[%clk 0:02:59]}  Nf6 {[%clk 0:02:57]} 4. e3 {[%clk 0:02:55]}  e6 {[%clk 0:02:54]} 5. Nf3 {[%clk 0:02:54]}  Nbd7 {[%clk 0:02:55]} 6. Bd3 {[%clk 0:02:53]}  dxc4 {[%clk 0:02:52]} 7. Bxc4 {[%clk 0:02:54]}  b5 {[%clk 0:02:50]} 8. Bd3 {[%clk 0:02:54]}  Bd6 {[%clk 0:02:50]} 9. O-O {[%clk 0:02:52]}  Bb7 {[%clk 0:02:50]} 10. Qc2 {[%clk 0:02:50]}  O-O {[%clk 0:02:49]} 11. Ng5 {[%clk 0:02:50]}  h6 {[%clk 0:02:46]} 12. Nge4 {[%clk 0:02:50]}  Be7 {[%clk 0:02:46]} 13. Rd1 {[%clk 0:02:46]}  Rc8 {[%clk 0:02:44]} 14. Nxf6+ {[%clk 0:02:29]}  Nxf6 {[%clk 0:02:43]} 15. Qe2 {[%clk 0:02:17]}  Qb6 {[%clk 0:02:38]} 16. e4 {[%clk 0:02:04]}  Rfd8 {[%clk 0:02:08]} 17. e5 {[%clk 0:01:49]}  Nh7 {[%clk 0:02:07]} 18. Be3 {[%clk 0:01:30]}  c5 {[%clk 0:02:01]} 19. Nxb5 {[%clk 0:01:07]}  c4 {[%clk 0:01:59]} 20. Bxh7+ {[%clk 0:00:56]}  Kxh7 {[%clk 0:02:00]} 21. Nc3 {[%clk 0:00:51]}  Qc6 {[%clk 0:01:56]} 22. f3 {[%clk 0:00:51]}  Kg8 {[%clk 0:01:55]} 23. Ne4 {[%clk 0:00:47]}  Qd5 {[%clk 0:01:43]} 24. Nc3 {[%clk 0:00:46]}  Qa5 {[%clk 0:01:42]} 25. Rac1 {[%clk 0:00:44]}  Bb4 {[%clk 0:01:36]} 26. a3 {[%clk 0:00:43]}  Be7 {[%clk 0:01:32]} 27. Qf2 {[%clk 0:00:41]}  Bd5 {[%clk 0:01:28]} 28. Ne4 {[%clk 0:00:35]}  Rb8 {[%clk 0:01:27]} 29. Qg3 {[%clk 0:00:25]}  Kf8 {[%clk 0:01:20]} 30. Rc2 {[%clk 0:00:18]}  c3 {[%clk 0:01:05]} 31. Rxc3 {[%clk 0:00:08]}  Rxb2 {[%clk 0:01:04]} 32. Rcd3 {[%clk 0:00:03]}  Qa4 {[%clk 0:00:54]} 33. Bxh6 {[%clk 0:00:03]}  gxh6 {[%clk 0:00:52]} 34. Nf6 {[%clk 0:00:04]}  Bxa3 {[%clk 0:00:34]} 35. Rc3 {[%clk 0:00:02]}  Qxd1+ {[%clk 0:00:33]} 0-1


[Site "https://www.chess.com"]

[Event "Titled Tuesday Blitz April 12 Late 2022"]
[White "Sochacki, Christophe"]
[Black "Nozdrachev, Leonid"]
[WhiteFideId "662569"]
[BlackFideId "24113433"]
[WhiteElo "2480"]
[BlackElo "2242"]
[Result "1-0"]
[Round "04"]
[TimeControl "180+1"]
[Date "2022.04.13"]
[WhiteClock "0:00:30"]
[BlackClock "0:00:10"]

1. e4 {[%clk 0:03:00]}  d6 {[%clk 0:02:59]} 2. d4 {[%clk 0:03:00]}  Nf6 {[%clk 0:02:58]} 3. Nc3 {[%clk 0:03:00]}  e5 {[%clk 0:02:58]} 4. f4 {[%clk 0:02:59]}  exd4 {[%clk 0:02:57]} 5. Qxd4 {[%clk 0:02:59]}  Nc6 {[%clk 0:02:54]} 6. Bb5 {[%clk 0:02:59]}  g6 {[%clk 0:02:50]} 7. e5 {[%clk 0:02:53]}  dxe5 {[%clk 0:02:48]} 8. Qxd8+ {[%clk 0:02:48]}  Kxd8 {[%clk 0:02:49]} 9. Bxc6 {[%clk 0:02:47]}  bxc6 {[%clk 0:02:46]} 10. fxe5 {[%clk 0:02:48]}  Ng4 {[%clk 0:02:34]} 11. Nf3 {[%clk 0:02:46]}  Ba6 {[%clk 0:02:15]} 12. h3 {[%clk 0:02:29]}  Nh6 {[%clk 0:02:14]} 13. Bg5+ {[%clk 0:02:26]}  Kc8 {[%clk 0:02:13]} 14. Bf6 {[%clk 0:02:22]}  Rg8 {[%clk 0:02:12]} 15. O-O-O {[%clk 0:02:23]}  Nf5 {[%clk 0:02:09]} 16. g4 {[%clk 0:02:13]}  Bh6+ {[%clk 0:01:53]} 17. Kb1 {[%clk 0:02:09]}  Ne3 {[%clk 0:01:52]} 18. Rde1 {[%clk 0:02:03]}  Nc4 {[%clk 0:01:42]} 19. Re4 {[%clk 0:01:57]}  Rb8 {[%clk 0:01:38]} 20. b3 {[%clk 0:01:55]}  Bd2 {[%clk 0:01:34]} 21. Rxc4 {[%clk 0:01:52]}  Bxc4 {[%clk 0:01:26]} 22. Nxd2 {[%clk 0:01:51]}  Be6 {[%clk 0:01:25]} 23. Nde4 {[%clk 0:01:46]}  h5 {[%clk 0:01:25]} 24. Nc5 {[%clk 0:01:39]}  hxg4 {[%clk 0:01:17]} 25. Nxe6 {[%clk 0:01:34]}  fxe6 {[%clk 0:01:17]} 26. hxg4 {[%clk 0:01:34]}  g5 {[%clk 0:01:12]} 27. Ne4 {[%clk 0:01:33]}  Rb4 {[%clk 0:01:11]} 28. c4 {[%clk 0:01:31]}  a5 {[%clk 0:01:09]} 29. Kb2 {[%clk 0:01:25]}  a4 {[%clk 0:01:08]} 30. Kc3 {[%clk 0:01:25]}  Rb8 {[%clk 0:01:06]} 31. Rh7 {[%clk 0:01:17]}  axb3 {[%clk 0:01:05]} 32. axb3 {[%clk 0:01:17]}  Ra8 {[%clk 0:01:03]} 33. Nxg5 {[%clk 0:01:01]}  Ra1 {[%clk 0:00:48]} 34. Nxe6 {[%clk 0:01:00]}  Rxg4 {[%clk 0:00:47]} 35. Rxc7+ {[%clk 0:00:58]}  Kb8 {[%clk 0:00:47]} 36. Rxc6 {[%clk 0:00:57]}  Rc1+ {[%clk 0:00:46]} 37. Kb4 {[%clk 0:00:57]}  Rb1 {[%clk 0:00:45]} 38. Nc5 {[%clk 0:00:54]}  Rf4 {[%clk 0:00:40]} 39. e6 {[%clk 0:00:53]}  Rxf6 {[%clk 0:00:38]} 40. Nd7+ {[%clk 0:00:43]}  Kb7 {[%clk 0:00:37]} 41. Nxf6 {[%clk 0:00:44]}  Re1 {[%clk 0:00:32]} 42. e7 {[%clk 0:00:45]}  Rxe7 {[%clk 0:00:30]} 43. Rb6+ {[%clk 0:00:44]}  Ka7 {[%clk 0:00:28]} 44. Nd5 {[%clk 0:00:45]}  Re2 {[%clk 0:00:25]} 45. Kc5 {[%clk 0:00:44]}  Rh2 {[%clk 0:00:23]} 46. b4 {[%clk 0:00:44]}  Rh4 {[%clk 0:00:22]} 47. b5 {[%clk 0:00:43]}  Rg4 {[%clk 0:00:21]} 48. Re6 {[%clk 0:00:41]}  Rh4 {[%clk 0:00:20]} 49. Re7+ {[%clk 0:00:42]}  Ka8 {[%clk 0:00:19]} 50. b6 {[%clk 0:00:31]}  Rg4 {[%clk 0:00:17]} 51. Nc7+ {[%clk 0:00:31]}  Kb7 {[%clk 0:00:15]} 52. Na6+ {[%clk 0:00:32]}  Kc8 {[%clk 0:00:10]} 53. b7+ {[%clk 0:00:30]}  Kd8 {[%clk 0:00:10]} 54. b8=Q+ {[%clk 0:00:30]} 1-0


[Site "https://www.chess.com"]

[Event "Titled Tuesday Blitz April 12 Late 2022"]
[White "Sokolovsky, Yahli"]
[Black "Pranav, V"]
[WhiteFideId "2820242"]
[BlackFideId "25060783"]
[WhiteElo "1770"]
[BlackElo "2349"]
[Result "0-1"]
[Round "04"]
[TimeControl "180+1"]
[Date "2022.04.12"]
[WhiteClock "0:00:06"]
[BlackClock "0:00:18"]

1. b3 {[%clk 0:03:00]}  e5 {[%clk 0:03:00]} 2. Bb2 {[%clk 0:03:01]}  Nc6 {[%clk 0:03:01]} 3. e3 {[%clk 0:03:01]}  g6 {[%clk 0:03:01]} 4. f4 {[%clk 0:02:55]}  Bg7 {[%clk 0:03:00]} 5. Nf3 {[%clk 0:02:55]}  d6 {[%clk 0:02:59]} 6. Bb5 {[%clk 0:02:55]}  Ne7 {[%clk 0:02:59]} 7. fxe5 {[%clk 0:02:32]}  O-O {[%clk 0:02:57]} 8. O-O {[%clk 0:02:10]}  dxe5 {[%clk 0:02:56]} 9. d3 {[%clk 0:02:04]}  Nf5 {[%clk 0:02:45]} 10. Qe1 {[%clk 0:01:39]}  Re8 {[%clk 0:02:43]} 11. Bxc6 {[%clk 0:01:33]}  bxc6 {[%clk 0:02:44]} 12. e4 {[%clk 0:01:34]}  Nd6 {[%clk 0:02:37]} 13. Nbd2 {[%clk 0:01:33]}  a5 {[%clk 0:02:29]} 14. a4 {[%clk 0:01:33]}  Rb8 {[%clk 0:02:29]} 15. Ba3 {[%clk 0:01:33]}  f5 {[%clk 0:02:23]} 16. Qe2 {[%clk 0:01:25]}  Be6 {[%clk 0:02:20]} 17. Bb2 {[%clk 0:01:21]}  Bf7 {[%clk 0:02:19]} 18. Bc3 {[%clk 0:01:21]}  Ra8 {[%clk 0:02:17]} 19. Rae1 {[%clk 0:01:19]}  f4 {[%clk 0:02:14]} 20. h3 {[%clk 0:01:02]}  g5 {[%clk 0:02:12]} 21. g4 {[%clk 0:00:53]}  h5 {[%clk 0:01:51]} 22. Qg2 {[%clk 0:00:47]}  hxg4 {[%clk 0:01:50]} 23. hxg4 {[%clk 0:00:46]}  Be6 {[%clk 0:01:50]} 24. Nh2 {[%clk 0:00:33]}  Qe7 {[%clk 0:01:49]} 25. Qf2 {[%clk 0:00:25]}  Nf7 {[%clk 0:01:45]} 26. Ndf3 {[%clk 0:00:25]}  Bd7 {[%clk 0:01:43]} 27. Kh1 {[%clk 0:00:21]}  Bf6 {[%clk 0:01:41]} 28. Rg1 {[%clk 0:00:21]}  Kg7 {[%clk 0:01:41]} 29. Rg2 {[%clk 0:00:21]}  Rh8 {[%clk 0:01:42]} 30. Kg1 {[%clk 0:00:22]}  Rh3 {[%clk 0:01:42]} 31. Kf1 {[%clk 0:00:22]}  Rah8 {[%clk 0:01:42]} 32. Ke2 {[%clk 0:00:22]}  Qa3 {[%clk 0:01:25]} 33. Bxa5 {[%clk 0:00:18]}  Qb2 {[%clk 0:01:25]} 34. Kd2 {[%clk 0:00:19]}  Qa3 {[%clk 0:01:22]} 35. Bc3 {[%clk 0:00:19]}  Qd6 {[%clk 0:01:21]} 36. Kc1 {[%clk 0:00:16]}  Be6 {[%clk 0:01:20]} 37. Qa7 {[%clk 0:00:13]}  c5 {[%clk 0:01:15]} 38. Qa5 {[%clk 0:00:05]}  Rb8 {[%clk 0:01:13]} 39. Bb2 {[%clk 0:00:05]}  Be7 {[%clk 0:01:02]} 40. Qc3 {[%clk 0:00:04]}  Bf6 {[%clk 0:01:02]} 41. Ba3 {[%clk 0:00:04]}  Rb4 {[%clk 0:01:00]} 42. Bxb4 {[%clk 0:00:04]}  cxb4 {[%clk 0:01:01]} 43. Qd2 {[%clk 0:00:05]}  Nd8 {[%clk 0:00:59]} 44. Kb1 {[%clk 0:00:05]}  Nc6 {[%clk 0:00:59]} 45. Qf2 {[%clk 0:00:05]}  Be7 {[%clk 0:00:57]} 46. Nd2 {[%clk 0:00:05]}  Nd4 {[%clk 0:00:54]} 47. Nhf3 {[%clk 0:00:06]}  Nxf3 {[%clk 0:00:53]} 48. Nxf3 {[%clk 0:00:06]}  Bxb3 {[%clk 0:00:53]} 49. cxb3 {[%clk 0:00:04]}  Qxd3+ {[%clk 0:00:53]} 50. Ka2 {[%clk 0:00:05]}  Rxf3 {[%clk 0:00:53]} 51. Qc2 {[%clk 0:00:06]}  Qd7 {[%clk 0:00:35]} 52. Rd1 {[%clk 0:00:06]}  Bd6 {[%clk 0:00:35]} 53. Qc4 {[%clk 0:00:04]}  Rc3 {[%clk 0:00:31]} 54. Qd5 {[%clk 0:00:05]}  Qe8 {[%clk 0:00:31]} 55. Rd3 {[%clk 0:00:04]}  Rc5 {[%clk 0:00:31]} 56. Qb7 {[%clk 0:00:03]}  Qf7 {[%clk 0:00:31]} 57. Qa6 {[%clk 0:00:03]}  Qg6 {[%clk 0:00:30]} 58. Qb7 {[%clk 0:00:02]}  Ra5 {[%clk 0:00:30]} 59. Qc6 {[%clk 0:00:02]}  Qf7 {[%clk 0:00:27]} 60. Qc4 {[%clk 0:00:02]}  Rxa4+ {[%clk 0:00:26]} 61. Kb2 {[%clk 0:00:03]}  Qxc4 {[%clk 0:00:26]} 62. bxc4 {[%clk 0:00:04]}  Kf6 {[%clk 0:00:25]} 63. Rc2 {[%clk 0:00:03]}  Bc5 {[%clk 0:00:25]} 64. Rd5 {[%clk 0:00:03]}  Ra5 {[%clk 0:00:19]} 65. Rd3 {[%clk 0:00:02]}  Bd4+ {[%clk 0:00:18]} 66. Rxd4 {[%clk 0:00:03]}  exd4 {[%clk 0:00:18]} 67. Kb3 {[%clk 0:00:04]}  Ke5 {[%clk 0:00:19]} 68. Kxb4 {[%clk 0:00:04]}  Ra8 {[%clk 0:00:19]} 69. Kc5 {[%clk 0:00:04]}  Kxe4 {[%clk 0:00:18]} 70. Kc6 {[%clk 0:00:04]}  f3 {[%clk 0:00:19]} 71. Kxc7 {[%clk 0:00:04]}  d3 {[%clk 0:00:19]} 72. Rb2 {[%clk 0:00:04]}  Ke3 {[%clk 0:00:19]} 73. c5 {[%clk 0:00:05]}  f2 {[%clk 0:00:18]} 74. Rb1 {[%clk 0:00:05]}  Rf8 {[%clk 0:00:18]} 75. Kb7 {[%clk 0:00:06]}  f1=Q {[%clk 0:00:18]} 0-1


[Site "https://www.chess.com"]

[Event "Titled Tuesday Blitz April 12 Late 2022"]
[White "Svane, Frederik"]
[Black "Yedidia, Daniel"]
[WhiteFideId "12923044"]
[BlackFideId "30905907"]
[WhiteElo "2459"]
[BlackElo "2613"]
[Result "1-0"]
[Round "04"]
[TimeControl "180+1"]
[Date "2022.04.12"]
[WhiteClock "0:00:46"]
[BlackClock "0:00:02"]

1. e4 {[%clk 0:03:00]}  e5 {[%clk 0:02:59]} 2. Nf3 {[%clk 0:03:01]}  Nc6 {[%clk 0:02:59]} 3. Bb5 {[%clk 0:03:01]}  a6 {[%clk 0:02:59]} 4. Ba4 {[%clk 0:03:02]}  Nf6 {[%clk 0:03:00]} 5. Nc3 {[%clk 0:03:02]}  b5 {[%clk 0:02:57]} 6. Bb3 {[%clk 0:03:02]}  Be7 {[%clk 0:02:58]} 7. d3 {[%clk 0:02:59]}  O-O {[%clk 0:02:57]} 8. O-O {[%clk 0:02:59]}  d6 {[%clk 0:02:58]} 9. a3 {[%clk 0:02:59]}  Bg4 {[%clk 0:02:57]} 10. Be3 {[%clk 0:02:59]}  Qd7 {[%clk 0:02:52]} 11. h3 {[%clk 0:02:59]}  Bh5 {[%clk 0:02:52]} 12. Nd5 {[%clk 0:02:52]}  Nxd5 {[%clk 0:02:45]} 13. Bxd5 {[%clk 0:02:53]}  Rad8 {[%clk 0:02:35]} 14. g4 {[%clk 0:02:51]}  Bg6 {[%clk 0:02:31]} 15. a4 {[%clk 0:02:51]}  b4 {[%clk 0:02:30]} 16. a5 {[%clk 0:02:51]}  Bf6 {[%clk 0:02:24]} 17. c3 {[%clk 0:02:50]}  bxc3 {[%clk 0:02:23]} 18. bxc3 {[%clk 0:02:51]}  Ne7 {[%clk 0:02:22]} 19. Bb3 {[%clk 0:02:40]}  h6 {[%clk 0:02:07]} 20. Ba4 {[%clk 0:02:21]}  Qc8 {[%clk 0:02:06]} 21. c4 {[%clk 0:02:17]}  c6 {[%clk 0:02:05]} 22. Rc1 {[%clk 0:02:16]}  Qe6 {[%clk 0:01:58]} 23. Qe2 {[%clk 0:02:07]}  d5 {[%clk 0:01:51]} 24. Bc5 {[%clk 0:01:53]}  Bh7 {[%clk 0:01:15]} 25. Bxe7 {[%clk 0:01:22]}  Bxe7 {[%clk 0:01:10]} 26. cxd5 {[%clk 0:01:22]}  cxd5 {[%clk 0:01:08]} 27. Bb3 {[%clk 0:01:22]}  h5 {[%clk 0:00:52]} 28. Bxd5 {[%clk 0:01:10]}  Qf6 {[%clk 0:00:42]} 29. Nd2 {[%clk 0:01:02]}  hxg4 {[%clk 0:00:39]} 30. hxg4 {[%clk 0:01:01]}  Rd6 {[%clk 0:00:39]} 31. Nc4 {[%clk 0:01:00]}  Rdd8 {[%clk 0:00:29]} 32. Kg2 {[%clk 0:00:58]}  Bc5 {[%clk 0:00:17]} 33. Rh1 {[%clk 0:00:57]}  Bd4 {[%clk 0:00:13]} 34. Rh3 {[%clk 0:00:50]}  Rxd5 {[%clk 0:00:06]} 35. exd5 {[%clk 0:00:51]}  Qg6 {[%clk 0:00:01]} 36. Rch1 {[%clk 0:00:48]}  f5 {[%clk 0:00:01]} 37. Rxh7 {[%clk 0:00:47]}  fxg4 {[%clk 0:00:02]} 38. Rh8+ {[%clk 0:00:46]} 1-0


[Site "https://www.chess.com"]

[Event "Titled Tuesday Blitz April 12 Late 2022"]
[White "Volkov, Maksim"]
[Black "Artemiev, Vladislav"]
[WhiteFideId "54123070"]
[BlackFideId "24101605"]
[WhiteElo "2081"]
[BlackElo "2811"]
[Result "0-1"]
[Round "04"]
[TimeControl "180+1"]
[Date "2022.04.12"]
[WhiteClock "0:00:19"]
[BlackClock "0:00:11"]

1. d4 {[%clk 0:03:00]}  d5 {[%clk 0:02:57]} 2. c4 {[%clk 0:03:00]}  e6 {[%clk 0:02:58]} 3. Nf3 {[%clk 0:03:00]}  Nf6 {[%clk 0:02:57]} 4. g3 {[%clk 0:03:00]}  Bd6 {[%clk 0:02:57]} 5. Bg2 {[%clk 0:03:00]}  O-O {[%clk 0:02:57]} 6. O-O {[%clk 0:03:00]}  Nc6 {[%clk 0:02:57]} 7. cxd5 {[%clk 0:02:53]}  exd5 {[%clk 0:02:57]} 8. Nc3 {[%clk 0:02:53]}  h6 {[%clk 0:02:54]} 9. b3 {[%clk 0:02:48]}  Re8 {[%clk 0:02:51]} 10. Bb2 {[%clk 0:02:47]}  Bg4 {[%clk 0:02:13]} 11. Rc1 {[%clk 0:02:35]}  Qd7 {[%clk 0:02:11]} 12. Re1 {[%clk 0:02:33]}  a6 {[%clk 0:01:32]} 13. e3 {[%clk 0:02:27]}  Qf5 {[%clk 0:01:22]} 14. Nh4 {[%clk 0:02:01]}  Qh5 {[%clk 0:01:21]} 15. Qc2 {[%clk 0:02:01]}  Bb4 {[%clk 0:01:07]} 16. h3 {[%clk 0:01:52]}  Bd7 {[%clk 0:01:04]} 17. Bf3 {[%clk 0:01:48]}  Qg5 {[%clk 0:01:04]} 18. Bg2 {[%clk 0:01:47]}  Bxc3 {[%clk 0:00:59]} 19. Bxc3 {[%clk 0:01:47]}  Ne4 {[%clk 0:00:59]} 20. Bb2 {[%clk 0:01:38]}  Qf6 {[%clk 0:00:59]} 21. Qe2 {[%clk 0:01:32]}  Nb4 {[%clk 0:00:53]} 22. Rxc7 {[%clk 0:01:22]}  Bb5 {[%clk 0:00:53]} 23. Qf3 {[%clk 0:01:15]}  Qxf3 {[%clk 0:00:44]} 24. Bxf3 {[%clk 0:01:15]}  Nd3 {[%clk 0:00:43]} 25. Re2 {[%clk 0:01:15]}  Rac8 {[%clk 0:00:28]} 26. Rxb7 {[%clk 0:01:13]}  Ndxf2 {[%clk 0:00:24]} 27. Rxf2 {[%clk 0:01:03]}  Nxf2 {[%clk 0:00:25]} 28. Bxd5 {[%clk 0:01:03]}  Nxh3+ {[%clk 0:00:26]} 29. Kg2 {[%clk 0:01:02]}  Ng5 {[%clk 0:00:26]} 30. Ba3 {[%clk 0:00:40]}  Rc2+ {[%clk 0:00:25]} 31. Kh1 {[%clk 0:00:38]}  Rxe3 {[%clk 0:00:23]} 32. Ng2 {[%clk 0:00:38]}  Rxg3 {[%clk 0:00:20]} 33. Bd6 {[%clk 0:00:33]}  Rh3+ {[%clk 0:00:14]} 34. Kg1 {[%clk 0:00:33]}  Nf3+ {[%clk 0:00:13]} 35. Bxf3 {[%clk 0:00:33]}  Rxf3 {[%clk 0:00:14]} 36. d5 {[%clk 0:00:20]}  Rf1+ {[%clk 0:00:12]} 37. Kh2 {[%clk 0:00:20]}  Rff2 {[%clk 0:00:13]} 38. Kh3 {[%clk 0:00:19]}  Rxg2 {[%clk 0:00:11]} 39. Be5 {[%clk 0:00:19]}  Bd3 {[%clk 0:00:11]} 0-1


[Site "https://www.chess.com"]

[Event "Titled Tuesday Blitz April 12 Late 2022"]
[White "Wagner, Dennis"]
[Black "Baches Garcia, Guillermo"]
[WhiteFideId "24650684"]
[BlackFideId "2209764"]
[WhiteElo "2697"]
[BlackElo "2517"]
[Result "1-0"]
[Round "04"]
[TimeControl "180+1"]
[Date "2022.04.13"]
[WhiteClock "0:01:47"]
[BlackClock "0:00:01"]

1. d4 {[%clk 0:03:00]}  Nf6 {[%clk 0:02:59]} 2. Nf3 {[%clk 0:03:00]}  e6 {[%clk 0:02:58]} 3. c4 {[%clk 0:03:00]}  d5 {[%clk 0:02:58]} 4. g3 {[%clk 0:03:01]}  Be7 {[%clk 0:02:57]} 5. Bg2 {[%clk 0:03:01]}  O-O {[%clk 0:02:58]} 6. O-O {[%clk 0:03:02]}  dxc4 {[%clk 0:02:58]} 7. Na3 {[%clk 0:03:02]}  Bd7 {[%clk 0:02:40]} 8. Nxc4 {[%clk 0:03:01]}  Bc6 {[%clk 0:02:41]} 9. b3 {[%clk 0:03:02]}  Nbd7 {[%clk 0:02:37]} 10. Bb2 {[%clk 0:03:02]}  a5 {[%clk 0:02:32]} 11. a3 {[%clk 0:03:02]}  Nb6 {[%clk 0:02:30]} 12. Nce5 {[%clk 0:03:01]}  Bd5 {[%clk 0:02:21]} 13. Rc1 {[%clk 0:03:02]}  a4 {[%clk 0:02:15]} 14. b4 {[%clk 0:03:02]}  Bb3 {[%clk 0:02:02]} 15. Qd3 {[%clk 0:02:59]}  c6 {[%clk 0:01:52]} 16. e4 {[%clk 0:02:58]}  Nbd7 {[%clk 0:01:44]} 17. Nc4 {[%clk 0:02:51]}  Bxc4 {[%clk 0:01:22]} 18. Rxc4 {[%clk 0:02:50]}  Nb6 {[%clk 0:01:18]} 19. Rc2 {[%clk 0:02:49]}  Nc8 {[%clk 0:01:12]} 20. Rd1 {[%clk 0:02:47]}  Na7 {[%clk 0:01:11]} 21. h4 {[%clk 0:02:43]}  Nb5 {[%clk 0:01:11]} 22. Bh3 {[%clk 0:02:42]}  h6 {[%clk 0:01:09]} 23. Ne5 {[%clk 0:02:35]}  Nd7 {[%clk 0:01:00]} 24. Nxd7 {[%clk 0:02:32]}  Qxd7 {[%clk 0:00:59]} 25. d5 {[%clk 0:02:32]}  Rad8 {[%clk 0:00:41]} 26. Qf3 {[%clk 0:02:26]}  f5 {[%clk 0:00:20]} 27. d6 {[%clk 0:01:55]}  Bxd6 {[%clk 0:00:03]} 28. e5 {[%clk 0:01:54]}  Qe7 {[%clk 0:00:02]} 29. exd6 {[%clk 0:01:52]}  Rxd6 {[%clk 0:00:02]} 30. Rxd6 {[%clk 0:01:49]}  Nxd6 {[%clk 0:00:03]} 31. Bf1 {[%clk 0:01:48]}  Ne4 {[%clk 0:00:03]} 32. Bd3 {[%clk 0:01:48]}  Nf6 {[%clk 0:00:01]} 33. Re2 {[%clk 0:01:47]} 1-0


[Site "https://www.chess.com"]